bitfinex/quotes_ETHUSD_20250706
["timestamp","ask_amount","ask_price","bid_price","bid_amount"]
[1751802832904,0.001,2516.1,2516.0,0.2004]
[1751802833112,7.973,2516.1,2516.0,0.2004]
[1751802880151,8.7743,2516.1,2516.0,0.2004]
[1751802880327,8.7743,2516.1,2516.0,0.002]
[1751802887561,9.5347,2516.1,2516.0,0.002]
[1751802893960,8.7743,2516.1,2516.0,0.002]
[1751802894133,0.8023,2516.1,2516.0,0.002]
[1751802894339,7.972,2516.1,2516.0,0.002]
[1751802895269,0.001,2516.1,2516.0,0.002]
[1751802895568,7.972,2516.1,2516.0,0.002]
[1751802898969,0.001,2516.1,2516.0,0.002]
[1751802899181,7.972,2516.1,2516.0,0.002]
[1751802900475,8.79304,2516.1,2516.0,0.002]
[1751802903480,0.82204,2516.1,2516.0,0.002]
[1751802903651,7.971,2516.1,2516.0,0.002]
[1751802904185,0.001,2516.1,2516.0,0.002]
[1751802904354,7.971,2516.1,2516.0,0.002]
[1751802904884,0.001,2516.1,2516.0,0.002]
[1751802905196,7.971,2516.1,2516.0,0.002]
[1751802905475,8.79194,2516.1,2516.0,0.002]
[1751802916193,9.81394,2516.1,2516.0,0.002]
[1751802924107,1.84394,2516.1,2516.0,0.002]
[1751802924307,0.1994,2516.1,2516.0,0.002]
[1751802924611,8.1704,2516.1,2516.0,0.002]
[1751802930913,8.9531,2516.1,2516.0,0.002]
[1751802931208,0.1994,2516.1,2516.0,0.002]
[1751802931414,8.1694,2516.1,2516.0,0.002]
[1751802931718,8.99034,2516.1,2516.0,0.002]
[1751802935217,1.02034,2516.1,2516.0,0.002]
[1751802935514,7.971,2516.1,2516.0,0.002]
[1751802935695,0.001,2516.1,2516.0,0.002]
[1751802935895,0.001,2516.1,2516.0,0.9696]
[1751802936401,7.971,2516.1,2516.0,0.9696]
[1751802948907,7.971,2516.1,2516.0,0.002]
[1751802956143,0.001,2516.1,2516.0,0.002]
[1751802956548,0.001,2516.1,2516.0,0.8026]
[1751802956711,7.974,2516.1,2516.0,0.8026]
[1751802959050,7.974,2516.1,2516.0,1.001]
[1751802962621,0.001,2516.1,2516.0,1.001]
[1751802969054,0.001,2516.1,2516.0,2.1011]
[1751802974369,0.001,2516.1,2516.0,12.1011]
[1751802976930,0.001,2516.1,2516.0,11.3005]
[1751802977136,0.001,2516.1,2516.0,12.1274]
[1751802978332,0.001,2516.1,2516.0,2.1274]
[1751802980064,0.7998,2516.1,2516.0,2.1274]
[1751802980281,0.7998,2516.1,2516.0,12.1274]
[1751802980482,0.7998,2516.1,2516.0,2.1274]
[1751802995389,0.7998,2516.1,2516.0,0.2004]
[1751802996486,0.001,2516.1,2516.0,0.2004]
[1751803002251,0.0631754,2516.5,2516.0,0.2004]
[1751803002252,0.0863508,2519.0,2516.1,0.55]
[1751803002507,15.59811597,2519.9,2519.0,0.972567]
[1751803002656,0.37185105,2519.4,2519.0,0.972567]
[1751803002851,8.196,2519.5,2519.0,0.972567]
[1751803003057,1.19141328,2519.4,2519.0,3.40927921]
[1751803003297,0.1277211,2519.9,2519.0,3.40927921]
[1751803003298,8.196,2519.5,2519.1,2.43337888]
[1751803003468,8.146,2519.5,2519.0,0.972567]
[1751803003658,0.1277211,2519.9,2519.0,0.972567]
[1751803003857,8.196,2519.8,2519.0,0.972567]
[1751803004077,9.02837211,2519.7,2519.0,0.972567]
[1751803005079,0.55,2519.6,2519.0,0.972567]
[1751803005466,0.8216,2519.4,2519.0,0.972567]
[1751803006584,9.0116,2519.4,2519.0,0.972567]
[1751803007182,0.8216,2519.4,2519.0,0.972567]
[1751803007386,0.90126,2519.3,2519.0,0.972567]
[1751803007767,8.198,2519.5,2519.0,0.972567]
[1751803008798,0.8216,2519.7,2519.0,0.972567]
[1751803009006,8.195,2519.4,2519.0,0.972567]
[1751803012301,8.195,2519.4,2519.1,0.1984]
[1751803017404,0.1984,2519.5,2519.1,0.1984]
[1751803017579,8.176,2519.3,2519.1,0.1984]
[1751803020609,9.01344,2519.3,2519.1,0.1984]
[1751803021318,9.01344,2519.3,2519.2,0.36432969]
[1751803021626,9.01344,2519.3,2519.1,0.1984]
[1751803022118,9.01344,2519.3,2519.2,0.36448589]
[1751803022480,8.176,2519.3,2519.2,0.36448589]
[1751803023088,8.176,2519.3,2519.1,0.36448589]
[1751803023382,0.1984,2519.4,2519.2,0.2188523]
[1751803023583,8.165,2519.3,2519.2,0.2188523]
[1751803023783,8.165,2519.3,2519.2,0.36472747]
[1751803023985,8.165,2519.3,2519.2,0.58357977]
[1751803026189,8.165,2519.3,2519.2,0.94897419]
[1751803027021,8.165,2519.3,2519.2,0.58424672]
[1751803027698,9.80654,2519.3,2519.2,0.2188523]
[1751803027901,0.1984,2519.2,2519.0,0.973567]
[1751803028095,0.1984,2519.2,2519.1,0.36588538]
[1751803029011,0.1984,2519.2,2519.0,0.973567]
[1751803030802,9.80654,2519.3,2519.0,0.973567]
[1751803031003,0.1984,2519.1,2519.0,0.973567]
[1751803031515,0.1984,2519.1,2519.0,2.72203781]
[1751803032717,0.1984,2519.1,2519.0,0.973567]
[1751803036435,0.1984,2519.1,2519.0,3.34413544]
[1751803036436,1.0084,2519.1,2519.0,3.34413544]
[1751803036734,1.5584,2519.1,2519.0,0.973567]
[1751803036916,2.5738054,2519.1,2519.0,0.973567]
[1751803040038,10.7158054,2519.1,2519.0,0.973567]
[1751803042339,10.7148054,2519.1,2519.0,0.973567]
[1751803043746,2.5738054,2519.1,2519.0,0.973567]
[1751803043909,10.7138054,2519.1,2519.0,0.973567]
[1751803046118,2.0238054,2519.1,2519.0,0.973567]
[1751803046321,10.1588054,2519.1,2519.0,0.973567]
[1751803047844,9.3488054,2519.1,2519.0,0.973567]
[1751803048740,1.2138054,2519.1,2519.0,0.973567]
[1751803049042,9.3458054,2519.1,2519.0,0.973567]
[1751803049221,0.1984,2519.1,2519.0,0.973567]
[1751803049427,8.3294,2519.1,2519.0,0.973567]
[1751803052307,8.3284,2519.1,2519.0,0.973567]
[1751803052919,9.1554,2519.1,2519.0,0.973567]
[1751803054114,1.0254,2519.1,2519.0,0.973567]
[1751803054315,8.3274,2519.1,2519.0,0.973567]
[1751803055342,9.24284,2519.1,2519.0,0.973567]
[1751803055544,9.24084,2519.1,2519.0,0.973567]
[1751803056543,9.23884,2519.1,2519.0,0.973567]
[1751803056857,8.3224,2519.1,2519.0,0.973567]
[1751803063024,0.1984,2519.1,2519.0,0.973567]
[1751803063225,8.3134,2519.1,2519.0,0.973567]
[1751803067954,0.1984,2519.1,2519.0,0.973567]
[1751803068154,0.1984,2519.1,2519.0,3.34413544]
[1751803068155,8.3074,2519.1,2519.0,3.34413544]
[1751803073123,8.3014,2519.1,2519.0,3.34413544]
[1751803079452,8.2924,2519.1,2519.0,0.973567]
[1751803084293,0.1984,2519.1,2519.0,0.973567]
[1751803084491,8.09,2519.1,2519.0,4.98236163]
[1751803084847,8.09,2519.1,2519.0,5.81186163]
[1751803085055,8.09,2519.1,2519.0,5.35891966]
[1751803087377,8.09,2519.1,2519.0,4.52941966]
[1751803089650,0.1984,2519.2,2519.0,4.52941966]
[1751803089852,0.1984,2519.2,2519.1,2.36909732]
[1751803090115,8.2864,2519.2,2519.1,2.36909732]
[1751803091279,8.2864,2519.2,2519.0,4.52941966]
[1751803092065,8.2864,2519.2,2519.1,2.36932643]
[1751803094092,8.2814,2519.2,2519.1,2.36932643]
[1751803094791,8.2814,2519.2,2519.1,1.46932643]
[1751803095690,0.1984,2519.2,2519.0,4.52941966]
[1751803095897,8.083,2519.1,2519.0,4.52941966]
[1751803096191,0.1984,2519.4,2519.1,0.8295]
[1751803096390,8.081,2519.3,2519.1,4.38416708]
[1751803096564,0.1984,2519.4,2519.1,4.38416708]
[1751803096765,8.081,2519.3,2519.1,4.38416708]
[1751803098586,8.90914,2519.3,2519.1,4.38416708]
[1751803100298,0.82814,2519.3,2519.1,4.38416708]
[1751803100465,8.078,2519.2,2519.1,4.38416708]
[1751803101796,0.1984,2519.4,2519.1,4.38416708]
[1751803101975,8.075,2519.3,2519.1,4.38416708]
[1751803103766,8.075,2519.3,2519.1,3.55466708]
[1751803104586,8.075,2519.3,2519.0,4.52823408]
[1751803105277,8.98569,2519.3,2519.0,4.52823408]
[1751803106499,8.075,2519.3,2519.0,4.52823408]
[1751803106882,0.1984,2519.2,2519.0,4.52823408]
[1751803108803,8.069,2519.1,2519.0,4.52823408]
[1751803114398,9.0513,2519.1,2519.0,4.52823408]
[1751803114595,9.0513,2519.1,2519.0,0.973567]
[1751803114788,9.95663,2519.1,2519.0,0.973567]
[1751803121009,9.17273,2519.1,2519.0,0.973567]
[1751803124307,8.2674,2519.1,2519.0,0.973567]
[1751803124819,8.2674,2519.1,2519.0,3.3428864]
[1751803125008,8.2674,2519.1,2519.0,3.4228864]
[1751803131724,8.2674,2519.1,2519.0,3.4228864]
[1751803132727,8.2694,2519.1,2519.0,3.4228864]
[1751803135170,0.2004,2519.1,2519.0,3.4228864]
[1751803135338,8.054,2519.1,2519.0,3.4228864]
[1751803135898,8.054,2519.1,2519.0,1.053567]
[1751803137842,8.054,2519.1,2519.0,3.42392614]
[1751803138038,8.054,2519.1,2519.0,1.053567]
[1751803138232,8.054,2519.1,2519.0,3.42393591]
[1751803138734,8.054,2519.1,2519.0,1.053567]
[1751803138928,8.054,2519.1,2519.0,3.42400587]
[1751803139134,8.05,2519.1,2519.0,3.42400587]
[1751803139525,8.05,2519.1,2519.0,1.053567]
[1751803139845,8.05,2519.1,2519.0,3.42403909]
[1751803140239,8.05,2519.1,2519.0,1.053567]
[1751803140441,8.85741062,2519.1,2519.0,3.42419347]
[1751803140922,8.05,2519.1,2519.0,3.42419347]
[1751803141125,8.05,2519.1,2519.0,1.053567]
[1751803145355,0.002,2519.1,2519.0,1.053567]
[1751803145559,8.048,2519.1,2519.0,1.053567]
[1751803153055,0.002,2519.1,2519.0,1.053567]
[1751803153259,8.042,2519.1,2519.0,4.60823408]
[1751803153632,8.042,2519.1,2519.0,1.053567]
[1751803158457,0.002,2519.1,2519.0,1.053567]
[1751803158633,8.037,2519.1,2519.0,1.053567]
[1751803161794,8.035,2519.1,2519.0,1.053567]
[1751803166305,8.86075062,2519.1,2519.0,1.053567]
[1751803172321,8.86075062,2519.1,2519.0,3.42527197]
[1751803172491,8.035,2519.1,2519.0,3.42527197]
[1751803173226,8.035,2519.1,2519.0,1.053567]
[1751803173394,8.035,2519.1,2519.0,3.42505904]
[1751803174215,8.035,2519.1,2519.0,1.053567]
[1751803174421,8.035,2519.1,2519.0,3.42505113]
[1751803175986,8.026,2519.1,2519.0,3.42505113]
[1751803184621,8.85085062,2519.1,2519.0,3.42505113]
[1751803194828,8.026,2519.1,2519.0,1.053567]
[1751803196501,8.026,2519.1,2519.0,3.42508386]
[1751803199237,0.002,2519.1,2519.0,3.42508386]
[1751803199537,8.019,2519.1,2519.0,3.42508386]
[1751803202642,8.019,2519.1,2519.0,1.053567]
[1751803203242,8.019,2519.1,2519.0,3.42530714]
[1751803203741,8.019,2519.1,2519.0,1.053567]
[1751803204546,8.019,2519.1,2519.0,3.42530745]
[1751803204834,8.019,2519.1,2519.0,3.42530657]
[1751803205038,8.019,2519.1,2519.0,1.053567]
[1751803205440,5.899,2519.1,2519.0,1.053567]
[1751803205742,5.899,2519.1,2519.0,3.42529861]
[1751803206040,0.1984,2519.2,2519.0,3.42529861]
[1751803206211,8.017,2519.1,2519.0,1.053567]
[1751803207243,8.017,2519.1,2519.0,3.42526979]
[1751803208337,9.65875062,2519.1,2519.0,3.42526979]
[1751803209023,9.03935062,2519.1,2519.0,3.42526979]
[1751803209223,8.2154,2519.1,2519.0,3.42526979]
[1751803210745,0.1984,2519.1,2519.0,3.42526979]
[1751803210957,8.016,2519.1,2519.0,1.053567]
[1751803211949,8.016,2519.1,2519.0,3.4251995]
[1751803212515,8.016,2519.1,2519.0,1.053567]
[1751803212814,8.016,2519.1,2519.0,3.4251995]
[1751803218213,8.2144,2519.1,2519.0,3.4251995]
[1751803218945,0.1984,2519.1,2519.0,3.4251995]
[1751803219151,8.2154,2519.1,2519.0,3.4251995]
[1751803221037,8.2154,2519.1,2519.0,3.42573583]
[1751803221437,8.2174,2519.1,2519.0,3.42573583]
[1751803222957,8.2164,2519.1,2519.0,3.42573583]
[1751803223150,8.2164,2519.1,2519.0,3.42577103]
[1751803223334,0.002,2519.1,2519.0,3.42577103]
[1751803223541,0.002,2519.1,2519.0,1.053567]
[1751803223542,8.018,2519.1,2519.0,1.053567]
[1751803224636,8.018,2519.1,2519.0,3.4260602]
[1751803226756,8.2164,2519.1,2519.0,3.4260602]
[1751803247294,8.988,2519.1,2519.0,3.4260602]
[1751803252289,9.88921062,2519.1,2519.0,3.4260602]
[1751803256904,9.88921062,2519.1,2519.0,1.053567]
[1751803261000,10.47241062,2519.1,2519.0,1.053567]
[1751803261401,27.25782009,2519.1,2519.0,1.053567]
[1751803261602,0.8048,2518.8,2518.2,2.3724932]
[1751803261802,0.1984,2518.4,2518.0,0.8218]
[1751803261996,8.2134,2518.3,2518.0,0.8218]
[1751803262195,8.015,2518.2,2518.0,0.8218]
[1751803265596,8.015,2518.2,2517.8,12.8025332]
[1751803265794,0.1984,2518.1,2517.8,12.8025332]
[1751803265994,0.1984,2518.1,2517.8,2.8025332]
[1751803266195,0.1984,2518.1,2517.8,0.0212332]
[1751803268714,0.1984,2518.1,2518.0,0.001]
[1751803269009,1.09503,2518.1,2518.0,0.001]
[1751803270406,0.1984,2518.1,2518.0,0.001]
[1751803273082,8.2154,2518.1,2518.0,0.001]
[1751803273418,0.1984,2518.1,2518.0,0.001]
[1751803273615,8.2144,2518.1,2518.0,0.001]
[1751803279118,0.1984,2518.1,2518.0,0.001]
[1751803279303,8.2144,2518.1,2518.0,0.001]
[1751803288430,0.1984,2518.1,2518.0,0.001]
[1751803288734,8.016,2518.1,2518.0,0.001]
[1751803292431,0.1984,2518.4,2518.0,0.001]
[1751803292625,8.016,2518.1,2518.0,0.001]
[1751803293534,8.016,2518.1,2518.0,3.55566708]
[1751803294717,8.015,2518.1,2518.0,3.55566708]
[1751803296236,0.8171,2518.7,2518.1,0.8232]
[1751803296422,8.49001,2518.6,2518.1,0.8232]
[1751803296740,8.49001,2518.6,2518.1,1.0216]
[1751803299221,0.47501,2518.6,2518.1,1.0216]
[1751803299544,8.014,2518.5,2518.1,1.0216]
[1751803305744,8.014,2518.5,2518.1,0.1984]
[1751803315249,8.014,2518.5,2518.2,0.8019]
[1751803318127,0.1984,2518.6,2518.2,0.8019]
[1751803318347,8.012,2518.5,2518.2,0.8019]
[1751803318847,8.012,2518.4,2518.2,0.8019]
[1751803320061,8.012,2518.3,2518.2,0.8019]
[1751803321959,0.1984,2518.7,2518.2,1.0003]
[1751803322164,8.012,2518.6,2518.2,3.75306708]
[1751803322380,8.012,2518.6,2518.3,0.8279]
[1751803324584,0.1984,2518.7,2518.3,0.8279]
[1751803324750,8.012,2518.5,2518.3,0.8279]
[1751803326562,8.012,2518.5,2518.2,0.1984]
[1751803327075,8.83304,2518.5,2518.2,0.1984]
[1751803327246,9.59184,2518.5,2518.1,3.75306708]
[1751803328633,9.59184,2518.5,2518.0,3.55566708]
[1751803328957,0.1984,2518.4,2518.0,0.001]
[1751803329150,1.177424,2518.4,2518.0,0.001]
[1751803330669,8.011,2518.3,2518.0,0.8091]
[1751803332471,0.1984,2518.4,2518.0,0.8091]
[1751803332663,8.011,2518.2,2518.0,0.8091]
[1751803333268,7.087655,2518.2,2518.0,0.8091]
[1751803334747,7.087655,2518.2,2518.0,0.001]
[1751803339588,0.1984,2518.4,2518.0,0.001]
[1751803339792,8.011,2518.1,2518.0,0.001]
[1751803342897,8.01,2518.1,2518.0,0.001]
[1751803345432,0.1984,2518.4,2518.0,0.7895]
[1751803345693,8.01,2518.1,2518.0,0.7895]
[1751803348415,0.1984,2518.4,2518.0,0.7895]
[1751803348717,8.01,2518.1,2518.0,0.7895]
[1751803350087,0.1984,2518.4,2518.0,0.7895]
[1751803350498,8.009,2518.3,2518.0,0.7895]
[1751803350898,8.009,2518.2,2518.0,0.7895]
[1751803352417,0.1984,2518.4,2518.0,0.7895]
[1751803352617,8.009,2518.3,2518.0,0.82921405]
[1751803353119,8.009,2518.3,2518.0,4.38388113]
[1751803354119,8.009,2518.3,2518.0,4.84423256]
[1751803359206,8.009,2518.3,2518.0,4.38388113]
[1751803360445,0.1984,2518.4,2518.0,4.38388113]
[1751803360612,10.001,2519.0,2518.0,4.38388113]
[1751803360613,8.009,2518.3,2518.0,4.38388113]
[1751803360802,8.009,2518.3,2518.1,3.55466708]
[1751803363326,8.009,2518.3,2518.0,4.34416708]
[1751803363530,8.009,2518.3,2518.0,4.78070711]
[1751803365459,8.009,2518.3,2518.1,3.55466708]
[1751803366331,8.009,2518.3,2518.0,4.78070711]
[1751803367329,8.009,2518.3,2518.1,3.55466708]
[1751803370535,8.009,2518.3,2518.2,0.1984]
[1751803371536,8.009,2518.3,2518.0,3.55566708]
[1751803371742,8.009,2518.3,2518.1,0.1984]
[1751803372836,8.7614,2518.3,2518.1,0.1984]
[1751803374124,9.65738,2518.3,2518.1,0.1984]
[1751803374910,9.65738,2518.3,2518.0,0.001]
[1751803378841,9.65838,2518.3,2518.0,0.001]
[1751803379313,8.7624,2518.3,2518.0,0.001]
[1751803395277,0.001,2518.3,2518.0,0.001]
[1751803395431,8.005,2518.2,2518.1,0.1984]
[1751803397460,8.005,2518.2,2518.0,3.55566708]
[1751803399456,0.001,2518.3,2518.0,3.55566708]
[1751803399757,8.004,2518.2,2518.0,3.55566708]
[1751803401367,0.001,2518.3,2518.0,3.55566708]
[1751803401537,8.004,2518.1,2518.0,3.55566708]
[1751803408751,8.004,2518.1,2518.0,0.001]
[1751803408947,7.994,2518.1,2518.0,0.001]
[1751803415570,7.994,2518.1,2518.0,3.55566708]
[1751803416477,8.003,2518.1,2518.0,4.31466708]
[1751803416681,8.003,2518.1,2518.0,4.76809711]
[1751803418982,8.003,2518.1,2518.0,4.00909711]
[1751803419151,8.003,2518.1,2518.0,3.55566708]
[1751803420575,8.002,2518.1,2518.0,3.55566708]
[1751803426085,8.002,2518.1,2518.0,0.001]
[1751803428668,0.8183,2518.2,2518.0,0.001]
[1751803428883,8.002,2518.1,2518.0,0.001]
[1751803429890,0.8183,2518.2,2518.0,0.001]
[1751803430081,8.001,2518.1,2518.0,0.001]
[1751803446519,0.001,2518.2,2518.0,0.001]
[1751803446671,8.0,2518.1,2518.0,0.001]
[1751803447277,8.001,2518.1,2518.0,0.001]
[1751803448101,8.8312,2518.1,2518.0,0.001]
[1751803454474,9.71452,2518.1,2518.0,0.001]
[1751803456679,9.71054867,2518.1,2518.0,0.001]
[1751803458004,9.90894867,2518.1,2518.0,0.001]
[1751803464202,9.02562867,2518.1,2518.0,0.001]
[1751803469926,1.0296,2518.1,2518.0,0.001]
[1751803470114,9.0276,2518.1,2518.0,0.001]
[1751803471323,1.0296,2518.1,2518.0,0.001]
[1751803471530,9.0276,2518.1,2518.0,0.001]
[1751803474626,8.1974,2518.1,2518.0,0.001]
[1751803475828,8.1964,2518.1,2518.0,0.001]
[1751803476328,0.1994,2518.1,2518.0,0.001]
[1751803476527,8.1964,2518.1,2518.0,0.001]
[1751803478117,0.1994,2518.1,2518.0,0.001]
[1751803478311,8.1964,2518.1,2518.0,0.001]
[1751803480636,0.1994,2518.1,2518.0,0.001]
[1751803480846,8.1964,2518.1,2518.0,0.001]
[1751803498998,8.1944,2518.1,2518.0,0.001]
[1751803505903,0.1994,2518.1,2518.0,0.001]
[1751803506082,8.1944,2518.1,2518.0,0.001]
[1751803509296,9.09143,2518.1,2518.0,0.001]
[1751803516080,9.86423,2518.1,2518.0,0.001]
[1751803517672,10.41423,2518.1,2518.0,0.001]
[1751803517876,20.41423,2518.1,2518.0,0.001]
[1751803518290,20.78678329,2518.1,2518.0,0.001]
[1751803521687,27.57219276,2518.1,2518.0,0.001]
[1751803521884,27.57147764,2518.1,2518.0,0.001]
[1751803530296,19.57647764,2518.1,2518.0,0.001]
[1751803530521,29.51047764,2518.1,2518.0,0.001]
[1751803536127,30.10644141,2518.1,2518.0,0.001]
[1751803543754,29.73460324,2518.1,2518.0,0.001]
[1751803543934,10.55,2518.0,2517.8,0.0212332]
[1751803544140,30.13174415,2518.1,2517.8,0.0212332]
[1751803544141,33.10783339,2517.9,2517.8,0.0212332]
[1751803545418,39.89324286,2517.9,2517.8,0.0212332]
[1751803545836,40.10081827,2517.9,2517.8,0.0212332]
[1751803546369,40.10125555,2517.9,2517.8,0.0212332]
[1751803546664,40.10124709,2517.9,2517.8,0.0212332]
[1751803547945,32.10624709,2517.9,2517.8,0.0212332]
[1751803548155,42.04024709,2517.9,2517.8,0.0212332]
[1751803548356,42.04047043,2517.9,2517.8,0.0212332]
[1751803550765,32.10647043,2517.9,2517.8,0.0212332]
[1751803550940,42.04047043,2517.9,2517.8,0.0212332]
[1751803553055,32.10647043,2517.9,2517.8,0.0212332]
[1751803553268,42.04047043,2517.9,2517.8,0.0212332]
[1751803556584,10.55,2517.8,2517.2,0.7211726]
[1751803556761,0.7484,2517.3,2517.2,0.7211726]
[1751803556960,11.05319307,2517.3,2517.2,0.7211726]
[1751803560489,1.12019307,2517.3,2517.2,0.7211726]
[1751803560688,0.57019307,2517.3,2517.2,0.7211726]
[1751803560889,0.37179307,2517.3,2517.2,0.7211726]
[1751803561088,0.1984,2517.5,2517.2,0.7211726]
[1751803561289,7.994,2517.4,2517.2,0.7211726]
[1751803563897,7.994,2517.3,2517.2,0.7211726]
[1751803566767,8.1924,2517.3,2517.2,0.7211726]
[1751803571270,8.1914,2517.3,2517.2,0.7211726]
[1751803574000,8.1904,2517.3,2517.2,0.7211726]
[1751803575569,11.482,2517.9,2517.2,0.7211726]
[1751803575790,0.1984,2517.7,2517.2,0.9195726]
[1751803576090,0.1984,2517.7,2517.3,0.8185]
[1751803576388,11.482,2517.9,2517.3,0.8185]
[1751803576389,7.992,2517.6,2517.3,0.8185]
[1751803576616,7.992,2517.6,2517.3,1.0169]
[1751803577518,7.992,2517.5,2517.3,1.0169]
[1751803577684,0.1984,2517.8,2517.3,1.0169]
[1751803577887,7.992,2517.7,2517.3,1.0169]
[1751803578536,7.992,2517.7,2517.3,1.0566251]
[1751803578713,7.992,2517.7,2517.4,0.8185]
[1751803581340,0.1984,2517.8,2517.4,0.8185]
[1751803581509,7.991,2517.7,2517.4,0.8185]
[1751803584412,7.991,2517.7,2517.4,0.85822352]
[1751803584613,7.991,2517.7,2517.4,0.8185]
[1751803585350,0.1994,2517.9,2517.4,0.8185]
[1751803585552,7.991,2517.8,2517.4,0.8185]
[1751803586028,0.001,2517.9,2517.5,0.03972194]
[1751803586349,7.991,2517.8,2517.7,1.0253]
[1751803590431,0.001,2517.9,2517.7,1.0253]
[1751803590635,0.001,2517.9,2517.8,0.84591721]
[1751803590854,0.001,2517.9,2517.8,1.04431721]
[1751803590855,7.991,2517.9,2517.8,1.04431721]
[1751803591054,7.991,2517.9,2517.8,1.0046]
[1751803599776,0.001,2517.9,2517.8,1.0046]
[1751803599970,7.99,2517.9,2517.8,1.0046]
[1751803600273,0.001,2517.9,2517.8,1.0046]
[1751803600452,7.99,2517.9,2517.8,1.0046]
[1751803601652,7.99,2517.9,2517.8,1.46449874]
[1751803601852,0.001,2517.9,2517.8,1.46449874]
[1751803602056,7.99,2517.9,2517.8,1.0046]
[1751803602278,7.99,2517.9,2517.8,1.04431721]
[1751803606467,0.001,2517.9,2517.8,1.04431721]
[1751803607284,0.001,2517.9,2517.8,4.59898429]
[1751803607784,0.001,2517.9,2517.8,1.04431721]
[1751803607984,0.001,2517.9,2517.8,6.05888272]
[1751803611272,0.001,2517.9,2517.8,16.05888272]
[1751803611588,0.001,2517.9,2517.8,12.46449843]
[1751803620220,0.001,2517.9,2517.8,16.02319143]
[1751803620390,0.001,2517.9,2517.8,12.46449843]
[1751803628298,0.001,2517.9,2517.8,17.20921945]
[1751803632933,0.001,2517.9,2517.8,12.46449843]
[1751803633352,0.001,2517.9,2517.8,17.21337252]
[1751803633757,0.001,2517.9,2517.8,12.46449843]
[1751803636934,0.001,2517.9,2517.8,14.94666311]
[1751803637169,0.001,2517.9,2517.8,4.94666311]
[1751803637371,0.7899,2517.9,2517.8,0.1984]
[1751803637670,0.7899,2517.9,2517.8,3.56280261]
[1751803638041,0.7899,2517.9,2517.5,3.76120261]
[1751803638368,0.7899,2517.9,2517.5,0.1984]
[1751803638942,0.7899,2517.9,2517.3,3.56280261]
[1751803639138,0.7889,2517.5,2517.3,3.56280261]
[1751803639337,7.986,2517.4,2517.2,3.76120261]
[1751803640152,7.986,2517.4,2517.2,10.1984]
[1751803642474,7.986,2517.4,2517.2,0.1984]
[1751803643443,8.88333,2517.4,2517.2,0.1984]
[1751803652081,0.8272,2517.3,2517.2,0.1984]
[1751803656695,0.8272,2517.3,2517.1,0.002]
[1751803657804,0.8272,2517.3,2517.2,3.97266804]
[1751803665170,0.8272,2517.3,2517.1,3.97480076]
[1751803665365,9.158453,2517.2,2517.1,3.97480076]
[1751803666595,9.158453,2517.2,2517.1,0.002]
[1751803667689,9.158453,2517.2,2517.1,3.97482587]
[1751803668271,9.158453,2517.2,2517.1,0.002]
[1751803668991,9.158453,2517.2,2517.1,3.97482587]
[1751803670707,9.158453,2517.2,2517.1,0.002]
[1751803671314,9.158453,2517.2,2517.1,3.97482587]
[1751803671511,9.158453,2517.2,2517.1,0.002]
[1751803675795,9.158453,2517.2,2517.1,3.97482587]
[1751803678611,9.158453,2517.2,2517.1,0.002]
[1751803678792,9.158453,2517.2,2517.1,3.97482587]
[1751803678993,9.158453,2517.2,2517.1,0.002]
[1751803679186,9.158453,2517.2,2517.1,3.97482587]
[1751803679386,8.1874,2517.2,2517.1,3.97482587]
[1751803682626,8.1874,2517.2,2517.1,0.002]
[1751803683332,8.1874,2517.2,2517.1,3.97482587]
[1751803685829,8.1874,2517.2,2517.1,0.002]
[1751803686328,13.53936804,2517.2,2517.1,0.002]
[1751803686532,15.2906588,2517.2,2517.1,0.002]
[1751803690299,25.66297029,2517.2,2517.1,0.002]
[1751803693419,32.44837976,2517.2,2517.1,0.002]
[1751803693612,32.44837976,2517.2,2517.1,1e-08]
[1751803695444,32.44777486,2517.2,2517.1,1e-08]
[1751803697316,32.44877486,2517.2,2517.1,1e-08]
[1751803698152,34.38677486,2517.2,2517.1,1e-08]
[1751803698315,34.38644417,2517.2,2517.1,1e-08]
[1751803701447,34.3862858,2517.2,2517.1,1e-08]
[1751803707333,34.38623951,2517.2,2517.1,1e-08]
[1751803717642,24.45923951,2517.2,2517.1,1e-08]
[1751803717842,33.00793951,2517.2,2517.1,1e-08]
[1751803718359,33.55793951,2517.2,2517.1,1e-08]
[1751803719262,33.55887017,2517.2,2517.1,1e-08]
[1751803721963,23.63087017,2517.2,2517.1,1e-08]
[1751803722272,7.35691137,2517.2,2517.1,0.75630001]
[1751803722445,15.34791137,2517.2,2517.1,0.75630001]
[1751803725478,15.29791137,2517.2,2517.1,0.75630001]
[1751803725987,8.5125019,2517.2,2517.1,0.75630001]
[1751803726264,8.5115019,2517.2,2517.1,0.75630001]
[1751803726473,8.1394,2517.2,2517.1,0.75630001]
[1751803726763,8.1394,2517.2,2517.1,1.22942486]
[1751803728540,0.1494,2517.2,2517.1,1.22942486]
[1751803728741,8.1394,2517.2,2517.1,1.22942486]
[1751803729676,0.1494,2517.2,2517.1,1.22942486]
[1751803729854,8.1394,2517.2,2517.1,1.22942486]
[1751803731344,0.1494,2517.2,2517.1,1.22942486]
[1751803731544,8.1384,2517.2,2517.1,1.22942486]
[1751803732545,8.1384,2517.2,2517.1,0.75630001]